[Event "Chinese League Div-A Rapid 2022"]
[Site "Fuling,Chongqing"]
[Date "2022.09.07"]
[Round "2.8"]
[White "Zeng, Chongsheng"]
[Black "Peng, Xiongjian"]
[Result "1-0"]
[ECO "A20"]
[WhiteElo "2597"]
[BlackElo "2454"]
[Annotator "TA"]
[PlyCount "101"]
[EventDate "2022.09.07"]
[EventType "team-tourn"]
[EventCountry "CHN"]
[SourceTitle "playchess.com"]
[Source "ChessBase"]
[SourceQuality "1"]
[TimeControl "1500+10"]

{[%evp 9,101,5,7,0,40,10,10,11,14,10,20,0,44,58,69,57,94,79,77,70,92,95,93,96,105,101,109,101,106,109,104,93,145,98,102,98,138,124,153,157,168,107,91,70,492,500,934,902,1034,1025,1016,1004,950,949,932,935,867,842,1228,1232,1234,496,1297,521,514,502,495,504,429,425,465,475,843,904,877,826,808,750,4088,3784,2083,2015,1627,1530,29959,29955,29969,29969,6103,6099,29975,29977,29981,29982]} 1. c4 {[%emt 0:00:01]} Nf6 {[%emt 0:00:03]} 2. g3 {[%emt 0:00:19]} e5 {[%emt 0:00:02]} 3. Bg2 {[%emt 0:00:28]} c6 {[%emt 0:00:07]} 4. d4 {[%emt 0:01:13]} e4 {[%emt 0:00:14]} 5. d5 {[%emt 0:02:28]} cxd5 {[%emt 0:00:35]} 6. cxd5 {[%emt 0:00:01] [#] A20: English Opening: 1...e5.} Na6 $146 {[%emt 0:00:13]} ({Predecessor:} 6... Bb4+ 7. Bd2 Qe7 8. Bxb4 Qxb4+ 9. Qd2 Nxd5 10. Qxb4 Nxb4 11. Bxe4 d5 12. a3 dxe4 13. axb4 {½-½ (59) Abdusattorov,N (2633)-Harsha,B (2489) Warsaw 2021}) 7. Nc3 {[%emt 0:00:10]} Bb4 {[%emt 0:00:06]} 8. Bd2 {[%emt 0:01:07] The position is equal.} Qe7 {[%emt 0:01:28]} 9. Nh3 {[%emt 0:01:06]} d6 $1 {[%emt 0:02:43]} 10. Ng5 {[%emt 0:00:40]} Bxc3 {[%emt 0:00:31]} (10... Bf5 $5 {[%cal Rh7h6]}) 11. Bxc3 {[%emt 0:00:32]} e3 {[%emt 0:00:06]} 12. f4 $36 {[%emt 0:03:20][%mdl 2048] White has the initiative.} Nc5 {[%emt 0:00:41]} 13. b4 {[%emt 0:02:07]} Ncd7 {[%emt 0:00:02]} 14. Qd4 {[%emt 0:00:51] White is more active.} Nb6 {[%emt 0:02:44]} 15. a4 {[%emt 0:02:43][%cal Ba2a4,Ba4a5][%mdl 32] Threatens to win with a5.} Bf5 {[%emt 0:02:11]} 16. a5 {[%emt 0:00:07]} Nbd7 {[%emt 0:00:01]} 17. O-O {[%emt 0:00:35] Black must now prevent Rf3.} O-O {[%emt 0:00:20]} 18. Rac1 {[%emt 0:03:13]} h6 {[%emt 0:03:00]} 19. Nf3 {[%emt 0:00:52][%cal Bg5f3,Bf3h4,Bh4g2,Bg2e3][%mdl 32]} Be4 {[%emt 0:01:40]} 20. Nh4 {[%emt 0:00:16]} (20. Qxe3 Nxd5 21. Qd4 N7f6 $11) 20... Rfe8 {[%emt 0:00:02]} (20... Bxg2 $142 21. Nxg2 Rfe8) 21. Bb2 {[%emt 0:01:09]} (21. Bh3 $142) 21... Bxg2 $16 {[%emt 0:02:51]} 22. Nxg2 {[%emt 0:00:29]} Qe4 {[%emt 0:00:01]} 23. Rc7 {[%emt 0:00:38]} Qf5 {[%emt 0:00:44]} 24. Nxe3 {[%emt 0:02:39]} Qh3 {[%emt 0:03:02][%cal Oe8e3] [#] aiming for ...Rxe3!} 25. Rf3 {[%emt 0:00:22]} (25. Rxb7 $2 {[#]} Rxe3 $1 {[%mdl 512]} 26. Qxe3 Ng4 $19) (25. Rfc1 $18) 25... Re4 {[%emt 0:00:05]} 26. Qc3 {[%emt 0:00:31] Strongly threatening g4.} Rae8 $2 {[%emt 0:01:03][%mdl 8192] Loses the game.} (26... Ne5 $1 $14 27. Rf2 (27. fxe5 Rxe3 28. Qd2 Ng4 $16) 27... Rxe3 28. Qxe3 Nxd5) 27. g4 $18 {[%emt 0:01:00]} Qh4 {[%emt 0:00:02]} (27... Qxf3 $142 28. exf3 Rxe3) 28. h3 {[%emt 0:00:15]} (28. Rxd7 Rxe3 29. Rxe3 Rxe3 30. Rd8+ (30. Qxe3 Qxg4+ 31. Qg3 Qxg3+ 32. hxg3 Nxd7 $14) 30... Re8 31. Rxe8+ Nxe8 $16) 28... Rxe3 {[%emt 0:01:53]} 29. Rxe3 {[%emt 0:00:02]} Rxe3 {[%emt 0:00:01]} 30. Qxe3 {[%emt 0:00:03]} Qe1+ {[%emt 0:00:01]} 31. Kg2 {[%emt 0:00:08]} Qxb4 {[%emt 0:01:53]} 32. Rc8+ {[%emt 0:00:46]} Kh7 {[%emt 0:00:01]} 33. Qd3+ {[%emt 0:00:06]} g6 {[%emt 0:00:35]} 34. Qd4 {[%emt 0:00:09]} Qb5 {[%emt 0:00:32]} 35. Rc2 {[%emt 0:00:23]} (35. Kf1 $142 {[%cal Od4f6] Threatening mate with Qxf6!} Qb3 36. Rd8 Qxh3+ 37. Ke1 Qh4+ 38. Kd1 Qh1+ 39. Kd2) 35... Qb3 {[%emt 0:00:49]} (35... Qxa5 $142 36. Rc8 Qb5) 36. Rd2 {[%emt 0:00:06]} (36. Rc7 $142 {[%cal Oc7d7] And now Rxd7! would win.} Qxd5+ 37. Qxd5 Nxd5 38. Rxd7) 36... g5 {[%emt 0:00:20]} 37. fxg5 {[%emt 0:00:06]} hxg5 {[%emt 0:00:02]} 38. Qd3+ {[%emt 0:00:01]} Qxd3 {[%emt 0:00:01]} 39. Rxd3 {[%emt 0:00:01][%cal Bd2d3,Bd3e3,Be3e7,Be7f7][%mdl 4128] Endgame KRB-KNN} ({Not} 39. exd3 Nxd5 40. Ba3 Nf4+ 41. Kg3 Nc5 $18) 39... Ne4 {[%emt 0:00:11]} 40. Bd4 {[%emt 0:00:12]} b6 {[%emt 0:00:07]} (40... Ndc5 $142 41. Rd1 Kg6) 41. Re3 {[%emt 0:00:10]} Nec5 {[%emt 0:00:05]} 42. Bxc5 {[%emt 0:00:08]} Nxc5 {[%emt 0:00:03] KR-KN} 43. Re7 {[%emt 0:00:04]} bxa5 {[%emt 0:00:27]} 44. Rxf7+ {[%emt 0:00:01]} Kg6 {[%emt 0:00:01]} 45. Rxa7 {[%emt 0:00:02]} a4 {[%emt 0:00:01]} 46. Kg3 {[%emt 0:00:17]} Kf6 {[%emt 0:00:24]} 47. h4 {[%emt 0:00:01]} Ne4+ {[%emt 0:00:35]} 48. Kf3 {[%emt 0:00:13]} Nd2+ {[%emt 0:00:02]} 49. Ke3 {[%emt 0:00:09]} Nf1+ {[%emt 0:00:20]} 50. Kf2 {[%emt 0:00:09]} Nh2 {[%emt 0:00:01]} 51. Rxa4 {[%emt 0:00:09] Weighted Error Value: White=0.36/Black=0.71} 1-0

[Event "Chinese League Div-A Rapid 2022"]
[Site "Fuling,Chongqing"]
[Date "2022.09.07"]
[Round "2.9"]
[White "Zhang, Xiaowen"]
[Black "Wang, Chuqiao"]
[Result "1-0"]
[ECO "C48"]
[WhiteElo "2307"]
[BlackElo "2037"]
[Annotator "TA"]
[PlyCount "89"]
[EventDate "2022.09.07"]
[EventType "team-tourn"]
[EventCountry "CHN"]
[SourceTitle "playchess.com"]
[Source "ChessBase"]
[SourceQuality "1"]
[TimeControl "1500+10"]

{[%evp 14,89,57,61,53,65,87,68,248,247,237,238,243,225,296,303,637,628,619,625,586,591,670,662,772,772,764,757,1758,935,1248,812,1438,933,1102,669,654,595,829,819,982,934,872,649,642,614,627,606,899,889,864,818,925,909,849,845,830,816,1835,1825,6211,5297,3970,5647,5118,3802,29975,29978,29977,29979,29977,29978,29984,29985,29985,29986,29986,29985]} 1. e4 {[%emt 0:00:03]} e5 {[%emt 0:00:03]} 2. Nf3 {[%emt 0:00:02][%cal Bg1f3,Bf3d4,Bd4f5][%mdl 32]} Nc6 {[%emt 0:00:05]} 3. Nc3 {[%emt 0:00:05]} Nf6 {[%emt 0:00:12]} 4. Bb5 {[%emt 0:00:04]} Bc5 {[%emt 0:01:33]} 5. O-O {[%emt 0:00:11]} d6 {[%emt 0:00:26]} 6. d4 {[%emt 0:01:59]} exd4 {[%emt 0:00:26]} 7. Nxd4 {[%emt 0:00:02]} Bd7 {[%emt 0:00:27]} 8. Nf5 {[%emt 0:00:15]} O-O {[%emt 0:02:38] C48: Four Knights: 4 Bb5, replies other than 4...Bb4.} 9. Bg5 {[%emt 0:00:34][%cal Of5g7] aiming for Nxg7!} h6 {[%emt 0:01:00]} 10. Bh4 {[%emt 0:00:59][%cal Of5g7] And now Nxg7! would win. White is more active.} Kh7 {[%emt 0:03:39] [#]} (10... Bxf5 $14 11. exf5 Nd4) 11. Nxg7 $1 $18 {[%emt 0:05:48][%mdl 512]} Kxg7 {[%emt 0:00:57]} 12. Nd5 {[%emt 0:00:01]} Bd4 {[%emt 0:01:37]} 13. c3 {[%emt 0:00:02] [#]} Ne7 $146 {[%emt 0:02:08]} (13... Be5 $2 14. f4 Ne7 15. Bxd7 (15. fxe5 Nfxd5 16. Bxd7 Qxd7 $18) 15... Bxc3 16. Nxe7 Qxe7 17. e5 dxe5 18. bxc3 $18) ({Predecessor:} 13... Qc8 14. Bxc6 bxc6 15. Qxd4 cxd5 16. Qxf6+ Kh7 17. exd5 Bf5 18. Rfe1 Bg6 19. Re7 Qa6 {1-0 (27) Ferguson,M (2290)-Lodhi,M (2475) Norwich 1994}) 14. Bxd7 {[%emt 0:03:38] The board is on fire.} ({Don't take} 14. Qxd4 $6 Nexd5 15. Bxd7 Nf4 $16) 14... Qxd7 $2 {[%emt 0:00:52]} (14... Ng6 15. Qxd4 Nxh4) 15. Qxd4 {[%emt 0:01:41]} Nexd5 {[%emt 0:00:02]} 16. exd5 {[%emt 0:00:03][%cal Be4d5,Bd5c6,Bc6b7][%mdl 32]} Qf5 {[%emt 0:00:11]} 17. Rae1 {[%emt 0:00:07][%cal Ba1e1,Be1e3,Be3g3][%mdl 32]} Rfe8 {[%emt 0:00:33]} 18. Re3 {[%emt 0:00:09]} c5 {[%emt 0:05:23]} 19. dxc6 {[%emt 0:01:01]} Re6 {[%emt 0:00:21]} 20. cxb7 {[%emt 0:01:18] White threatens Bxf6+ and mate.} Rae8 {[%emt 0:00:29]} 21. Rg3+ {[%emt 0:01:02]} Kh7 {[%emt 0:00:40]} 22. Rf3 {[%emt 0:00:05]} Qb1 {[%emt 0:00:15]} 23. g3 {[%emt 0:02:06]} (23. Rxb1 $2 {leads to mate.} Re1+ 24. Rxe1 Rxe1#) (23. b8=Q $2 {is a self mate.} Qxf1+ 24. Kxf1 Re1#) 23... Re1 {[%emt 0:00:14]} 24. Qd3+ {[%emt 0:01:36]} Qxd3 {[%emt 0:00:19]} 25. Rxd3 {[%emt 0:00:01]} Rxf1+ {[%emt 0:00:09]} 26. Kxf1 {[%emt 0:00:02][%mdl 4096] Endgame KRB-KRN} Nd7 {[%emt 0:00:22]} 27. Rxd6 {[%emt 0:00:09]} Nc5 {[%emt 0:00:01]} 28. Rd8 {[%emt 0:00:59]} Rxd8 {[%emt 0:00:07]} 29. Bxd8 {[%emt 0:00:02]} Nxb7 {[%emt 0:00:02] KB-KN} 30. Be7 {[%emt 0:00:02]} Na5 {[%emt 0:00:05]} 31. Ke2 {[%emt 0:00:26]} Kg6 {[%emt 0:00:07]} 32. Kd3 {[%emt 0:00:04]} Kf5 {[%emt 0:00:05]} 33. c4 {[%emt 0:00:16]} Nc6 {[%emt 0:00:11]} 34. Bf8 {[%emt 0:00:52]} h5 {[%emt 0:00:02]} 35. f4 {[%emt 0:00:08]} Kg4 {[%emt 0:00:31]} 36. b4 {[%emt 0:00:08][%cal Bb2b4,Bb4b5][%mdl 32]} Kh3 {[%emt 0:00:04]} 37. b5 {[%emt 0:00:02]} Nd8 {[%emt 0:00:04]} 38. Be7 {[%emt 0:00:28]} Ne6 {[%emt 0:00:36]} 39. c5 {[%emt 0:00:03][%cal Bc4c5,Bc5b6][%mdl 32] Threatening mate with b6.} Nc7 {[%emt 0:00:05]} 40. b6 {[%emt 0:00:50] White mates.} axb6 {[%emt 0:00:03]} 41. cxb6 {[%emt 0:00:01]} Na6 {[%emt 0:00:01]} 42. Kc4 {[%emt 0:00:14]} Kxh2 {[%emt 0:00:03]} 43. Bh4 {[%emt 0:00:02]} Kh3 {[%emt 0:00:20]} 44. a4 {[%emt 0:00:07][%cal Ba2a4,Ba4a5][%mdl 32]} Kg4 {[%emt 0:00:06]} 45. a5 {[%emt 0:00:05] Black got outplayed after the opening.  Weighted Error Value: White=0.50/Black=0.99} 1-0

[Event "Chinese League Div-A Rapid 2022"]
[Site "Fuling,Chongqing"]
[Date "2022.09.07"]
[Round "2.10"]
[White "Zhang, Lanlin"]
[Black "Huang, Qian"]
[Result "1-0"]
[ECO "B01"]
[WhiteElo "2135"]
[BlackElo "2433"]
[Annotator "RC"]
[PlyCount "81"]
[EventDate "2022.09.07"]
[EventType "team-tourn"]
[EventCountry "CHN"]
[SourceTitle "playchess.com"]
[Source "ChessBase"]
[SourceQuality "1"]
[TimeControl "1500+10"]

1. e4 {[%emt 0:00:03]} d5 {[%emt 0:00:49]} 2. exd5 {[%emt 0:00:04]} Nf6 {[%emt 0:00:02]} 3. Nf3 {[%emt 0:02:16]} Nxd5 {[%emt 0:00:10]} 4. d4 {[%emt 0:00:04]} Bg4 {[%emt 0:00:06]} 5. Be2 {[%emt 0:00:21]} e6 {[%emt 0:00:45]} 6. O-O {[%emt 0:01:06]} Nc6 {[%emt 0:00:46]} 7. Re1 {[%emt 0:05:19]} Be7 {[%emt 0:00:35]} 8. c3 {[%emt 0:01:17]} O-O {[%emt 0:00:29]} 9. Nbd2 {[%emt 0:00:06]} Re8 {[%emt 0:05:09]} 10. Nc4 {[%emt 0:01:20]} Bf8 {[%emt 0:01:10]} 11. Nce5 {[%emt 0:02:03]} Nxe5 {[%emt 0:00:43]} 12. dxe5 {[%emt 0:00:02]} c6 {[%emt 0:02:57]} 13. a4 {[%emt 0:05:58]} Bc5 {[%emt 0:04:22]} 14. Qb3 {[%emt 0:02:01]} Qc7 {[%emt 0:01:49]} 15. Qc4 {[%emt 0:00:33]} Bxf3 {[%emt 0:00:02]} 16. Bxf3 {[%emt 0:00:02]} Qb6 {[%emt 0:00:36]} 17. Rf1 {[%emt 0:01:05]} a5 {[%emt 0:00:10]} 18. Qg4 {[%emt 0:00:25]} Ne7 {[%emt 0:00:23]} 19. h4 {[%emt 0:00:13]} Rad8 {[%emt 0:04:39]} 20. h5 {[%emt 0:00:17]} Rd7 {[%emt 0:00:20]} 21. Be4 {[%emt 0:01:27]} Nf5 {[%emt 0:00:07]} 22. Bc2 {[%emt 0:01:53]} g6 {[%emt 0:00:37]} 23. Rb1 {[%emt 0:00:17]} Bf8 {[%emt 0:00:30]} 24. Qf3 {[%emt 0:00:44]} Bg7 {[%emt 0:00:14]} 25. g4 {[%emt 0:00:06]} Ne7 {[%emt 0:00:12]} 26. Qe4 {[%emt 0:00:07]} Rd5 {[%emt 0:00:23]} 27. Bf4 {[%emt 0:00:03]} c5 {[%emt 0:00:09]} 28. h6 {[%emt 0:00:11]} Bh8 {[%emt 0:00:25]} 29. b3 {[%emt 0:00:23]} Nc6 {[%emt 0:00:07]} 30. Rbd1 {[%emt 0:00:04]} Red8 {[%emt 0:00:16]} 31. Bg5 {[%emt 0:00:17]} Bxe5 {[%emt 0:00:22]} 32. Bxd8 {[%emt 0:00:05]} Qxd8 {[%emt 0:00:01]} 33. f4 {[%emt 0:00:14]} Bxc3 {[%emt 0:00:04]} 34. Rxd5 {[%emt 0:00:02]} exd5 {[%emt 0:00:11]} 35. Qd3 {[%emt 0:00:16]} Bd4+ {[%emt 0:00:08]} 36. Kg2 {[%emt 0:00:01]} Qh4 {[%emt 0:00:55]} 37. Qf3 {[%emt 0:00:01]} Qxh6 {[%emt 0:00:21]} 38. Qxd5 {[%emt 0:00:24]} Nb4 {[%emt 0:00:04]} 39. Qd8+ {[%emt 0:00:05]} Kg7 {[%emt 0:00:00]} 40. Be4 {[%emt 0:00:02]} Bf6 {[%emt 0:00:11]} 41. Qxf6+ {[%emt 0:00:06]} 1-0

[Event "Chinese League Div-A Rapid 2022"]
[Site "Fuling,Chongqing"]
[Date "2022.09.07"]
[Round "2.11"]
[White "Ma, Zhonghan"]
[Black "Zhou, Weiqi"]
[Result "1/2-1/2"]
[ECO "D22"]
[WhiteElo "2485"]
[BlackElo "2597"]
[Annotator "TA"]
[PlyCount "47"]
[EventDate "2022.09.07"]
[EventType "team-tourn"]
[EventCountry "CHN"]
[SourceTitle "playchess.com"]
[Source "ChessBase"]
[SourceQuality "1"]
[TimeControl "1500+10"]

{[%evp 15,47,4,8,6,10,9,11,7,7,8,4,2,2,3,4,2,2,2,2,3,7,0,4,6,6,3,6,0,6,0,7,0,8,0]} 1. d4 {[%emt 0:00:02]} d5 {[%emt 0:00:01]} 2. c4 {[%emt 0:00:03]} dxc4 {[%emt 0:00:08]} 3. Nf3 {[%emt 0:00:09]} a6 {[%emt 0:00:02]} 4. e3 {[%emt 0:00:27]} b5 {[%emt 0:00:03]} 5. a4 {[%emt 0:00:03]} Bb7 {[%emt 0:00:02]} 6. axb5 {[%emt 0:00:14]} axb5 {[%emt 0:00:02]} 7. Rxa8 {[%emt 0:00:03]} Bxa8 {[%emt 0:00:01]} 8. b3 {[%emt 0:00:02]} e6 {[%emt 0:00:08] The position is equal.} 9. bxc4 {[%emt 0:00:04] D22: Queen's Gambit Accepted: 3 Nf3 a6 4 e3.} bxc4 {[%emt 0:00:10]} 10. Bxc4 {[%emt 0:00:02]} Nf6 {[%emt 0:00:06]} 11. O-O {[%emt 0:00:38]} Be7 {[%emt 0:00:12]} 12. Ba3 {[%emt 0:01:38]} O-O {[%emt 0:00:22]} 13. Bxe7 {[%emt 0:00:23]} Qxe7 {[%emt 0:00:01]} 14. Nbd2 {[%emt 0:00:05][%cal Bb1d2,Bd2f3,Bf3d4][%mdl 32]} c5 {[%emt 0:00:09]} 15. Qa1 {[%emt 0:01:38] [#]} Bxf3 $146 {[%emt 0:00:32]} ({Predecessor:} 15... Nbd7 16. Rb1 cxd4 17. Qxd4 Qc5 {½-½ (17) Barria Zuniga,D (2341)-Sarkar,J (2377) Chess.com INT 2020}) 16. Nxf3 {[%emt 0:00:03]} cxd4 {[%emt 0:00:08]} 17. Nxd4 {[%emt 0:00:12]} Nbd7 {[%emt 0:00:39]} 18. Qa7 {[%emt 0:00:16]} Qc5 {[%emt 0:00:18]} 19. Qxc5 {[%emt 0:00:04]} Nxc5 {[%emt 0:00:02]} 20. Be2 {[%emt 0:00:30]} Ncd7 {[%emt 0:00:03]} 21. Bc4 {[%emt 0:00:05]} Nc5 {[%emt 0:00:02]} 22. Be2 {[%emt 0:00:04]} Ncd7 {[%emt 0:00:03]} 23. Bc4 {[%emt 0:00:04]} Nc5 {[%emt 0:00:01]} 24. Be2 {[%emt 0:00:05] An uneventful encounter.  Weighted Error Value: White=0.02 (flawless) /Black=0.02 (flawless)} 1/2-1/2

[Event "Chinese League Div-A Rapid 2022"]
[Site "Fuling,Chongqing"]
[Date "2022.09.07"]
[Round "2.12"]
[White "Wang, Hao B"]
[Black "Xiao, Tong"]
[Result "0-1"]
[ECO "E11"]
[WhiteElo "2165"]
[BlackElo "2027"]
[Annotator "RC"]
[PlyCount "116"]
[EventDate "2022.09.07"]
[EventType "team-tourn"]
[EventCountry "CHN"]
[SourceTitle "playchess.com"]
[Source "ChessBase"]
[SourceQuality "1"]
[TimeControl "1500+10"]

1. d4 {[%emt 0:00:02]} Nf6 {[%emt 0:00:02]} 2. c4 {[%emt 0:00:04]} e6 {[%emt 0:00:02]} 3. Nf3 {[%emt 0:00:05]} Bb4+ {[%emt 0:00:03]} 4. Nbd2 {[%emt 0:00:11]} O-O {[%emt 0:00:31]} 5. a3 {[%emt 0:00:11]} Bxd2+ {[%emt 0:00:02]} 6. Bxd2 {[%emt 0:00:13]} b6 {[%emt 0:00:02]} 7. Bg5 {[%emt 0:00:35]} Bb7 {[%emt 0:00:19]} 8. e3 {[%emt 0:00:03]} d6 {[%emt 0:00:40]} 9. Bd3 {[%emt 0:00:29]} Nbd7 {[%emt 0:00:09]} 10. O-O {[%emt 0:00:30]} h6 {[%emt 0:00:07]} 11. Bh4 {[%emt 0:00:14]} Qe7 {[%emt 0:00:07]} 12. Rc1 {[%emt 0:01:55]} a5 {[%emt 0:01:45]} 13. Re1 {[%emt 0:03:30]} Rfe8 {[%emt 0:01:22]} 14. Nd2 {[%emt 0:02:06]} Qf8 {[%emt 0:01:39]} 15. Qc2 {[%emt 0:00:55]} g5 {[%emt 0:01:36]} 16. Bg3 {[%emt 0:00:06]} Nh5 {[%emt 0:00:06]} 17. Be4 {[%emt 0:02:28]} Bxe4 {[%emt 0:00:20]} 18. Qxe4 {[%emt 0:00:03]} Nxg3 {[%emt 0:00:16]} 19. hxg3 {[%emt 0:00:09]} Nf6 {[%emt 0:00:15]} 20. Qc6 {[%emt 0:00:06]} Qe7 {[%emt 0:00:12]} 21. c5 {[%emt 0:01:29]} bxc5 {[%emt 0:00:19]} 22. dxc5 {[%emt 0:00:03]} d5 {[%emt 0:00:07]} 23. Qa4 {[%emt 0:01:39]} Nd7 {[%emt 0:01:38]} 24. Nb3 {[%emt 0:01:58]} Reb8 {[%emt 0:02:03]} 25. Rc2 {[%emt 0:00:02]} Ne5 {[%emt 0:00:33]} 26. Nc1 {[%emt 0:01:52]} f5 {[%emt 0:00:48]} 27. b3 {[%emt 0:01:04]} Kf7 {[%emt 0:02:09]} 28. Rd1 {[%emt 0:00:03]} g4 {[%emt 0:00:25]} 29. Qf4 {[%emt 0:00:20]} Ng6 {[%emt 0:00:03]} 30. Qd4 {[%emt 0:00:12]} c6 {[%emt 0:00:07]} 31. b4 {[%emt 0:02:01]} axb4 {[%emt 0:00:22]} 32. axb4 {[%emt 0:00:02]} Qf6 {[%emt 0:00:34]} 33. Ra2 {[%emt 0:01:01]} Ne5 {[%emt 0:02:08]} 34. Rxa8 {[%emt 0:00:12]} Rxa8 {[%emt 0:00:01]} 35. Nb3 {[%emt 0:00:09]} Nc4 {[%emt 0:01:05]} 36. Qxf6+ {[%emt 0:00:22]} Kxf6 {[%emt 0:00:01]} 37. Nd4 {[%emt 0:00:02]} Ra6 {[%emt 0:00:04]} 38. b5 {[%emt 0:01:11]} cxb5 {[%emt 0:00:02]} 39. c6 {[%emt 0:00:01]} Ke7 {[%emt 0:00:28]} 40. Rb1 {[%emt 0:00:22]} Nd6 {[%emt 0:01:57]} 41. Rc1 {[%emt 0:00:13]} Ra8 {[%emt 0:00:39]} 42. f4 {[%emt 0:00:53]} gxf3 {[%emt 0:00:18]} 43. gxf3 {[%emt 0:00:08]} e5 {[%emt 0:00:02]} 44. Nb3 {[%emt 0:00:17]} Nc4 {[%emt 0:00:03]} 45. f4 {[%emt 0:00:46]} Ra3 {[%emt 0:00:45]} 46. Rb1 {[%emt 0:00:48]} e4 {[%emt 0:02:21]} 47. Nd4 {[%emt 0:00:05]} Nxe3 {[%emt 0:00:02]} 48. Nxb5 {[%emt 0:00:13]} Ra4 {[%emt 0:00:55]} 49. Re1 {[%emt 0:00:26]} Nc2 {[%emt 0:00:53]} 50. Rd1 {[%emt 0:00:02]} d4 {[%emt 0:00:05]} 51. Rd2 {[%emt 0:00:08]} d3 {[%emt 0:00:12]} 52. Kh2 {[%emt 0:00:17]} Rc4 {[%emt 0:00:14]} 53. c7 {[%emt 0:00:02]} Kd7 {[%emt 0:00:05]} 54. Rd1 {[%emt 0:00:02]} Rb4 {[%emt 0:00:37]} 55. Nc3 {[%emt 0:00:02]} Ne3 {[%emt 0:00:15]} 56. Re1 {[%emt 0:00:05]} Ng4+ {[%emt 0:00:04]} 57. Kh3 {[%emt 0:00:01]} Rb2 {[%emt 0:00:08]} 58. Rc1 {[%emt 0:00:08]} Rh2# {[%emt 0:00:26]} 0-1

[Event "Chinese League Div-A Rapid 2022"]
[Site "Fuling,Chongqing"]
[Date "2022.09.07"]
[Round "2.13"]
[White "Pang, Tao"]
[Black "Zou, Chen"]
[Result "0-1"]
[ECO "E61"]
[WhiteElo "2427"]
[BlackElo "2432"]
[Annotator "TA"]
[PlyCount "112"]
[EventDate "2022.09.07"]
[EventType "team-tourn"]
[EventCountry "CHN"]
[SourceTitle "playchess.com"]
[Source "ChessBase"]
[SourceQuality "1"]
[TimeControl "1500+10"]

{[%evp 9,112,8,14,-10,21,20,20,19,18,19,13,22,83,82,80,79,103,103,122,121,110,71,107,77,83,64,51,58,66,59,72,56,53,45,97,33,32,29,29,31,29,27,31,22,24,0,0,0,0,0,31,0,0,0,0,0,0,-6,-5,-7,-4,-4,-5,-2,-2,-25,-34,-46,-31,-34,-36,-45,-33,-27,0,-49,-56,-87,-83,-406,-235,-29972,-29973,0,0,-29974,-29975,-29978,-29979,-29979,-29980,-29981,-29982,-29982,-29983,-29983,-29984,-29984,-29980,-29980,-29981,-29985,-29985,-29986,-29979]} 1. Nf3 {[%emt 0:00:03]} Nf6 {[%emt 0:00:03]} 2. c4 {[%emt 0:00:01]} g6 {[%emt 0:00:04]} 3. Nc3 {[%emt 0:00:13]} Bg7 {[%emt 0:00:04]} 4. d4 {[%emt 0:00:02]} O-O {[%emt 0:00:07]} 5. Bf4 {[%emt 0:00:01]} d6 {[%emt 0:00:12]} 6. Qd2 {[%emt 0:00:02] E61: King's Indian: Early deviations for White, including Smyslov System.} c5 {[%emt 0:00:42]} 7. d5 {[%emt 0:00:03]} a6 {[%emt 0:01:46][%cal Ob7b5]} 8. e4 {[%emt 0:00:41] The position is equal.} b5 {[%emt 0:00:07]} 9. cxb5 {[%emt 0:00:06]} axb5 {[%emt 0:00:01]} (9... Qb6 {looks sharper.} 10. e5 dxe5 11. Nxe5 axb5 12. Bxb5 Ne4) 10. Bxb5 {[%emt 0:00:01]} Ba6 {[%emt 0:00:16]} (10... Qb6 $11 {remains equal.}) 11. Bxa6 $16 {[%emt 0:00:20]} Nxa6 {[%emt 0:00:02]} 12. O-O {[%emt 0:00:06] [#]} Nd7 $146 {[%emt 0:00:40]} ({Predecessor:} 12... Qb6 13. Rfe1 Rfb8 14. Rab1 Qc7 15. a4 Nb4 16. Nb5 Qd7 17. b3 Ng4 18. h3 Rxb5 19. hxg4 {½-½ (37) Toledano Gonzalez,T (1835)-Manas Molina,A (1940) Madrid 2000}) 13. Bh6 {[%emt 0:00:08]} Qb6 {[%emt 0:01:16]} 14. Bxg7 {[%emt 0:00:02]} Kxg7 {[%emt 0:00:02]} 15. Rfe1 {[%emt 0:00:34]} Rfb8 {[%emt 0:00:22]} 16. Rab1 {[%emt 0:00:09]} Nc7 {[%emt 0:00:29]} 17. e5 {[%emt 0:00:16]} dxe5 {[%emt 0:00:05]} 18. Nxe5 {[%emt 0:00:02]} Nxe5 {[%emt 0:00:06]} 19. Rxe5 {[%emt 0:00:03]} Qd6 {[%emt 0:00:36]} 20. f4 {[%emt 0:03:27]} Nb5 {[%emt 0:01:41]} 21. Rbe1 {[%emt 0:00:59] Threatens to win with Ne4.} Ra7 {[%emt 0:01:44]} (21... Nxc3 $14 22. Qxc3 Kg8) 22. Nxb5 {[%emt 0:02:51]} (22. Ne4 $16 Qc7 23. Nc3) 22... Rxb5 $14 {[%emt 0:00:02]} 23. b3 {[%emt 0:00:48]} Rb4 {[%emt 0:01:05]} 24. R5e4 {[%emt 0:00:05]} Rxe4 {[%emt 0:00:48]} 25. Rxe4 {[%emt 0:00:01][%mdl 4096] Endgame KQR-KQR} Rd7 {[%emt 0:01:09]} 26. Qc3+ {[%emt 0:00:41]} f6 {[%emt 0:00:42]} 27. Qe3 {[%emt 0:02:10]} Kf7 {[%emt 0:00:19]} 28. Qh3 {[%emt 0:00:33]} Kg7 {[%emt 0:00:48]} 29. Qe6 {[%emt 0:00:16]} Kf8 {[%emt 0:00:17]} 30. Ra4 {[%emt 0:00:41] Hoping for Ra8+.} Qxd5 {[%emt 0:00:14]} 31. Qxd5 {[%emt 0:00:12]} Rxd5 $11 {[%emt 0:00:01] KR-KR} 32. Ra5 {[%emt 0:00:26]} Rd2 {[%emt 0:00:25]} 33. a4 {[%emt 0:00:09]} Rc2 {[%emt 0:00:08]} 34. Ra8+ {[%emt 0:05:11]} Kf7 {[%emt 0:00:04]} 35. Rc8 {[%emt 0:00:04]} Ke6 {[%emt 0:01:04]} 36. a5 {[%emt 0:01:53]} Kd7 {[%emt 0:00:12]} 37. Rb8 {[%emt 0:01:03]} Ra2 {[%emt 0:00:38]} 38. Rb5 {[%emt 0:00:53]} Kc6 {[%emt 0:00:02]} 39. Rb6+ {[%emt 0:00:01]} Kd5 {[%emt 0:00:36]} 40. Rb5 {[%emt 0:00:01]} Kd4 {[%emt 0:00:35]} 41. g4 $1 {[%emt 0:01:04]} e5 {[%emt 0:00:33]} 42. fxe5 {[%emt 0:00:04]} (42. g5 $11 fxg5 43. fxe5) 42... fxe5 $15 {[%emt 0:00:01]} 43. h4 {[%emt 0:01:05]} e4 {[%emt 0:00:08] Black is more active.} 44. Kf1 $2 {[%emt 0:00:41][%mdl 8192] [#]} (44. Rb7 $17 {nothing else works.}) 44... Kd3 $1 $19 {[%emt 0:01:19]} 45. Rxc5 $2 {[%emt 0:00:09] [#]} (45. Rb7 $19 h5 46. Rd7+ Ke3 47. gxh5 gxh5 48. Rd5) 45... Ra1+ $1 {[%emt 0:00:02]} 46. Kg2 {[%emt 0:00:02]} e3 {[%emt 0:00:01] ( -> ...e2)} 47. Rd5+ $2 {[%emt 0:03:03][%mdl 8192]} (47. Rc6 $11) 47... Ke4 {[%emt 0:00:05] Black mates.} 48. Rd7 {[%emt 0:00:11]} e2 {[%emt 0:00:03]} 49. Re7+ {[%emt 0:00:53]} Kd3 {[%emt 0:00:02]} 50. Kf2 {[%emt 0:00:49]} Rf1+ {[%emt 0:00:03]} 51. Kg3 {[%emt 0:00:01]} e1=Q+ {[%emt 0:00:02]} 52. Rxe1 {[%emt 0:00:01]} Rxe1 {[%emt 0:00:02]} 53. Kf4 {[%emt 0:00:01]} Kd4 {[%emt 0:00:25]} 54. Kg5 {[%emt 0:00:06]} Re7 {[%emt 0:00:06]} 55. h5 {[%emt 0:00:36]} gxh5 {[%emt 0:00:04]} 56. gxh5 {[%emt 0:00:02]} Kc5 {[%emt 0:00:04] Weighted Error Value: White=0.38/Black=0.08 (flawless)} 0-1